Workbook

Sheet Sheet1
A2: Retail Electricity Sales by Rate Schedule
A4: Actual Billed Usage | B4: 1991 | C4: 1992 | D4: 1993 | E4: 1994 | F4: 1995 | G4: 1996 | H4: 1997 | I4: 1998 | J4: 1999 | K4: 2000 | L4: 2001 | M4: 2002 | N4: 2003 | O4: 2004 | P4: 2005 | Q4: 2006 | R4: 2007 | S4: 2008 | T4: 2009 | U4: 2010
A5: Residential Schedule 001 | B5: 2197817719 | C5: 2089066160 | D5: 2194599102 | E5: 2090355045 | F5: 2084886557 | G5: 2184928234 | H5: 2130327075 | I5: 2138834495 | J5: 2168321535 | K5: 2160945957 | L5: 2159687216 | M5: 2136802598 | N5: 2179465306 | O5: 2202622699 | P5: 2226057855 | Q5: 2332184121 | R5: 2380356628 | S5: 2380895525 | T5: 2451686995 | U5: 2369443876
A6: General Svc Schedule 011/012 | B6: =299709772+29277502 -> 328987274 | C6: =300502784+27696634 -> 328199418 | D6: =319182789+28976243 -> 348159032 | E6: =329975276+28058239 -> 358033515 | F6: =327239782+27910857 -> 355150639 | G6: =326743903+28729282 -> 355473185 | H6: =334406960+28623665 -> 363030625 | I6: =341992707+28754125 -> 370746832 | J6: =342362915+30083579 -> 372446494 | K6: =343579040+32022315 -> 375601355 | L6: 380064119 | M6: 372469710 | N6: 379610801 | O6: 375709484 | P6: 380854910 | Q6: 407332797 | R6: 419241763 | S6: 416704101 | T6: 415935013 | U6: 411044840
A7: Large Gen Svc Schedule 021/022 | B7: =1241609588+14417182 -> 1256026770 | C7: =1260710779+13314120 -> 1274024899 | D7: =1274683149+15170519 -> 1289853668 | E7: =1330894481+14348366 -> 1345242847 | F7: =1377216053+13971844 -> 1391187897 | G7: =1393353659+15355886 -> 1408709545 | H7: =1377176221+15341262 -> 1392517483 | I7: =1432862599+15408023 -> 1448270622 | J7: =1439752807+16933997 -> 1456686804 | K7: =1469087648+18487385 -> 1487575033 | L7: 1484789427 | M7: 1452794341 | N7: 1502316511 | O7: 1535419461 | P7: 1540942994 | Q7: 1577885923 | R7: 1580537112 | S7: 1575845243 | T7: 1556929228 | U7: 1542454566
A8: Extra Large Gen Schedule 25 | B8: 423323455 | C8: 435870335 | D8: 469503564 | E8: 487580440 | F8: 502402556 | G8: 640157570 | H8: 575985861 | I8: 690788744 | J8: 838953406 | K8: 856309677 | L8: 843085880 | M8: 877710757 | N8: 853596417 | O8: 881369590 | P8: 919546825 | Q8: 944441577 | R8: 941498341 | S8: 930332149 | T8: 879232638 | U8: 1028354044
A9: Pumping Schedule 30/31/32 | B9: =19425320+55755514+13891594 -> 89072428 | C9: =23682040+58956132+15098022 -> 97736194 | D9: =17010040+55965027+10944934 -> 83920001 | E9: =24631516+67593098+16451197 -> 108675811 | F9: =19700940+61616023+13251232 -> 94568195 | G9: =21816440+70873815+8853113 -> 101543368 | H9: =19119460+68438055+7448836 -> 95006351 | I9: =25308180+68319154+9080075 -> 102707409 | J9: =30081420+67563851+8921517 -> 106566788 | K9: =28283540+61979421+9077221 -> 99340182 | L9: 94370631 | M9: 97189873 | N9: 101199932 | O9: 110846836 | P9: 119403258 | Q9: 125441658 | R9: 134010413 | S9: 133924708 | T9: 135998573 | U9: 121600426
A10: Street and Area Lights | B10: =305748+10438577+125232+3096312+2028308+6288405+4162594+2010 -> 26447186 | C10: =304948+10521305+127312+3089832+2041028+6291926+4137368+244 -> 26513963 | D10: =270180+10660463+132768+2907243+2061508+6280872+4100599 -> 26413633 | E10: =260684+11021074+132768+2886792+2068377+6250087+4109246 -> 26729028 | F10: =254880+11350968+134364+2844420+2067845+6237251+4062465 -> 26952193 | G10: =252716+11541263+137021+2844420+2062052+6305823+3973260 -> 27116555 | H10: =222263+10780146+145948+2607385+1906485+6145234+4051741 -> 25859202 | I10: =224514+11660204+219520+2780532+2095296+6338712+4107746 -> 27426524 | J10: =199671+12113143+222108+2774724+2136377+6298888+4158300 -> 27903211 | K10: =197120+12168177+221988+2690841+2156561+6406386+4146193 -> 27987266 | L10: 27898361 | M10: 27711371 | N10: 27515512 | O10: 27361858 | P10: 26857683 | Q10: 26324247 | R10: 26566820 | S10: 26645895 | T10: 26525635 | U10: 26365320
A11: Total | B11: =SUM(B5:B10) -> 4321674832 | C11: =SUM(C5:C10) -> 4251410969 | D11: 4412449000 | E11: 4416616686 | F11: 4455148037 | G11: 4717928457 | H11: 4582726597 | I11: 4778774626 | J11: 4970878238 | K11: 5007759470 | L11: 4989895634 | M11: 4964678650 | N11: 5043704479 | O11: 5133329928 | P11: 5213663525 | Q11: 5413610323 | R11: 5482211077 | S11: 5464347621 | T11: 5466308082 | U11: 5499263072
A13: Weather Adjustment
A14: Residential Schedule 001 | B14: 28739073 | C14: 91119780 | D14: -41777928 | E14: 66887980 | F14: 48564852 | G14: -59018116 | H14: 31621821 | I14: 35946971 | J14: 58773377 | K14: -24513912 | L14: -15044912 | M14: -2781033 | N14: 3331516 | O14: 13320719 | P14: 30637970 | Q14: 3929593 | R14: -16395261 | S14: -52844111 | T14: -76171324 | U14: 57118288
A15: General Svc Schedule 011/012 | B15: 1776666 | C15: 5658114 | D15: -3131358 | E15: 5390801 | F15: 4270059 | G15: -5383216 | H15: 2923761 | I15: -2767122 | J15: 5913048 | K15: -1266986 | L15: -2522577 | M15: -441814 | N15: -2548159 | O15: 139837 | P15: 2586657 | Q15: -2620621 | R15: -2535402 | S15: -4847232 | T15: -7099630 | U15: 5150143
A16: Large Gen Svc Schedule 021/022 | B16: 175576 | C16: 586698 | D16: -270748 | E16: 466646 | F16: 357305 | G16: -441530 | H16: 206167 | I16: 308852 | J16: 428318 | K16: -230451 | L16: -97980 | M16: -20152 | N16: 72607 | O16: 118647 | P16: 407284 | S16: -519361 | T16: -762809 | U16: 658774
A17: Extra Large Gen Schedule 25
A18: Pumping Schedule 30/31/32
A19: Street and Area Lights
A20: Total | B20: =SUM(B14:B19) -> 30691315 | C20: 97364592 | D20: -45180034 | E20: 72745427 | F20: 53192216 | G20: -64842862 | H20: 34751749 | I20: 33488701 | J20: 65114743 | K20: -26011349 | L20: -17665469 | M20: -3242999 | N20: 855964 | O20: 13579203 | P20: 33631911 | Q20: 1308972 | R20: -18930663 | S20: -58210704 | T20: -84033763 | U20: =SUM(U14:U19) -> 62927205
A22: Total Normalized Usage
A23: Residential Schedule 001 | B23: =B5+B14 -> 2226556792 | C23: =C5+C14 -> 2180185940 | D23: 2152821174 | E23: 2157243025 | F23: 2133451409 | G23: 2125910118 | H23: 2161948896 | I23: 2174781466 | J23: 2227094912 | K23: 2136432045 | L23: 2144642304 | M23: 2134021565 | N23: 2182796822 | O23: 2215943418 | P23: 2256695825 | Q23: 2336113714 | R23: 2363961367 | S23: 2328051414 | T23: 2375515671 | U23: 2426562164
A24: General Svc Schedule 011/012 | B24: =B6+B15 -> 330763940 | C24: 333857532 | D24: 345027674 | E24: 363424316 | F24: 359420698 | G24: 350089969 | H24: 365954386 | I24: 367979710 | J24: 378359542 | K24: 374334369 | L24: 377541542 | M24: 372027896 | N24: 377062642 | O24: 375849321 | P24: 383441567 | Q24: 404712176 | R24: 416706361 | S24: 411856869 | T24: 408835383 | U24: 416194983
A25: Large Gen Svc Schedule 021/022 | B25: 1256202346 | C25: 1274611597 | D25: 1289582920 | E25: 1345709493 | F25: 1391545202 | G25: 1408268015 | H25: 1392723650 | I25: 1448579474 | J25: 1457115122 | K25: 1487344582 | L25: 1484691447 | M25: 1452774189 | N25: 1502389118 | O25: 1535538108 | P25: 1541350278 | Q25: 1577885923 | R25: 1580537112 | S25: 1575325882 | T25: 1556166419 | U25: 1543113340
A26: Extra Large Gen Schedule 25 | B26: 423323455 | C26: 435870335 | D26: 469503564 | E26: 487580440 | F26: 502402556 | G26: 640157570 | H26: 575985861 | I26: 690788744 | J26: 838953406 | K26: 856309677 | L26: 843085880 | M26: 877710757 | N26: 853596417 | O26: 881369590 | P26: 919546825 | Q26: 944441577 | R26: 941498341 | S26: 930332149 | T26: 879232638 | U26: 1028354044
A27: Pumping Schedule 30/31/32 | B27: 89072428 | C27: 97736194 | D27: 83920001 | E27: 108675811 | F27: 94568195 | G27: 101543368 | H27: 95006351 | I27: 102707409 | J27: 106566788 | K27: 99340182 | L27: 94370631 | M27: 97189873 | N27: 101199932 | O27: 110846836 | P27: 119403258 | Q27: 125441658 | R27: 134010413 | S27: 133924708 | T27: 135998573 | U27: 121600426
A28: Street and Area Lights | B28: 26447186 | C28: 26513963 | D28: 26413633 | E28: 26729028 | F28: 26952193 | G28: 27116555 | H28: 25859202 | I28: 27426524 | J28: 27903211 | K28: 27987266 | L28: 27898361 | M28: 27711371 | N28: 27515512 | O28: 27361858 | P28: 26857683 | Q28: 26324247 | R28: 26566820 | S28: 26645895 | T28: 26525635 | U28: 26365320
A29: Total | B29: =SUM(B23:B28) -> 4352366147 | C29: =SUM(C23:C28) -> 4348775561 | D29: 4367268966 | E29: 4489362113 | F29: 4508340253 | G29: 4653085595 | H29: 4617478346 | I29: 4812263327 | J29: 5035992981 | K29: 4981748121 | L29: 4972230165 | M29: 4961435651 | N29: 5044560443 | O29: 5146909131 | P29: 5247295436 | Q29: 5414919295 | R29: 5463280414 | S29: 5406136917 | T29: 5382274319 | U29: 5562190277
A32: Average Number of Customers by Rate Schedule
B34: 1991 | C34: 1992 | D34: 1993 | E34: 1994 | F34: 1995 | G34: 1996 | H34: 1997 | I34: 1998 | J34: 1999 | K34: 2000 | L34: 2001 | M34: 2002 | N34: 2003 | O34: 2004 | P34: 2005 | Q34: 2006 | R34: 2007 | S34: 2008 | T34: 2009 | U34: 2010
A35: Residential Schedule 001 | B35: 157271 | C35: 159613 | D35: 162228 | E35: 165509 | F35: 168980 | G35: 170858 | H35: 171926 | I35: 175322 | J35: 177561 | K35: 178707 | L35: 180308 | M35: 181660 | N35: 183666 | O35: 186321 | P35: 189285 | Q35: 193059.8333 | R35: 196476 | S35: 198705.4167 | T35: 200134.0833 | U35: 200676.5833
A36: General Svc Schedule 011/012 | B36: =14740+3791 -> 18531 | C36: =15053+3881 -> 18934 | D36: =15401+3974 -> 19375 | E36: =15771+4099 -> 19870 | F36: =16253+4191 -> 20444 | G36: =16674+4334 -> 21008 | H36: =16815+4461 -> 21276 | I36: =17205+4677 -> 21882 | J36: =17516+4875 -> 22391 | K36: =17515+5315 -> 22830 | L36: 23427 | M36: 23915 | N36: 24324 | O36: 24718 | P36: 25188 | Q36: 25809.91667 | R36: 26429 | S36: 26885.58333 | T36: 27141.58333 | U36: 27495.5
A37: Large Gen Svc Schedule 021/022 | B37: =2514+37 -> 2551 | C37: =2570+39 -> 2609 | D37: =2613+39 -> 2652 | E37: =2671+38 -> 2709 | F37: =2778+38 -> 2816 | G37: =2855+39 -> 2894 | H37: =2908+41 -> 2949 | I37: =3017+41 -> 3058 | J37: =3077+43 -> 3120 | K37: =3163+46 -> 3209 | L37: 3180 | M37: 3182 | N37: 3210 | O37: 3302 | P37: 3354.916667 | Q37: 3303.833333 | R37: 3283.333333 | S37: 3314.666667 | T37: 3351.5 | U37: 3275.25
A38: Extra Large Gen Schedule 25 | B38: 14 | C38: 14 | D38: 15 | E38: 15 | F38: 15 | G38: 18 | H38: 20 | I38: 21 | J38: 21 | K38: 22 | L38: 23 | M38: 22 | N38: 20 | O38: 19 | P38: 21.25 | Q38: 21 | R38: 22.08333333 | S38: 22 | T38: 22 | U38: 22
A39: Pumping Schedule 30/31/32 | B39: =37+452+352 -> 841 | C39: =36+485+382 -> 903 | D39: =37+500+349 -> 886 | E39: =37+545+397 -> 979 | F39: =38+556+377 -> 971 | G39: =34+561+370 -> 965 | H39: =37+573+367 -> 977 | I39: =38+616+407 -> 1061 | J39: =40+643+432 -> 1115 | K39: =40+682+498 -> 1220 | L39: 1877 | M39: 1936 | N39: 2036 | O39: 2100 | P39: 2152.416667 | Q39: 2181.25 | R39: 2246.833333 | S39: 2315.333333 | T39: 2360.75 | U39: 2380
A40: Street and Area Lights | B40: =17+123+5+19+19 -> 183 | C40: =17+124+5+19+19 -> 184 | D40: =17+125+5+18+20 -> 185 | E40: =17+140+5+18+20 -> 200 | F40: =16+146+5+18+21 -> 206 | G40: =15+157+5+18+21 -> 216 | H40: =12+150+6+16+20 -> 204 | I40: =14+166+9+18+23 -> 230 | J40: =12+175+9+18+23 -> 237 | K40: =12+179+9+18+25 -> 243 | L40: 254 | M40: 260 | N40: 272 | O40: 264 | P40: 269.25 | Q40: 283.5833333 | R40: 299.9166667 | S40: 310.25 | T40: 321.3333333 | U40: 324.6666667
A41: Total | B41: =SUM(B35:B40) -> 179391 | C41: 182257 | D41: 185341 | E41: 189282 | F41: 193432 | G41: 195959 | H41: 197352 | I41: 201574 | J41: 204445 | K41: 206231 | L41: 209069 | M41: 210975 | N41: 213528 | O41: 216724 | P41: 220270.8333 | Q41: 224659.4167 | R41: 228757.1667 | S41: 231553.25 | T41: 233331.25 | U41: =SUM(U35:U40) -> 234174

Sheet Sheet2

Sheet Sheet3
